[Event "Mitropa Online Cup Open 2021"]
[Site "Hybrid"]
[Date "2021.05.04"]
[Round "1.3"]
[White "Sebenik, Matej"]
[Black "Gazik, Viktor"]
[Result "1/2-1/2"]
[ECO "E11"]
[WhiteElo "2498"]
[BlackElo "2542"]
[Annotator "ChessBase"]
[PlyCount "111"]
[EventDate "2021.05.04"]
[EventType "team-tourn"]
[EventCountry "NET"]
[SourceTitle "playchess.com"]
[Source "ChessBase"]
[SourceQuality "1"]
[WhiteTeam "Slovenia"]
[BlackTeam "Slovakia"]
[WhiteTeamCountry "SLO"]
[BlackTeamCountry "SVK"]
[TimeControl "40/5400+30:1800+30"]

1. d4 {[%emt 0:00:00]} Nf6 {[%emt 0:00:14]} 2. c4 {[%emt 0:00:12]} e6 {[%emt 0:01:43]} 3. Nf3 {[%emt 0:00:18]} Bb4+ {[%emt 0:00:42]} 4. Bd2 {[%emt 0:00:11]} Qe7 {[%emt 0:00:06]} 5. e3 {[%emt 0:01:32]} O-O {[%emt 0:05:18]} 6. Bd3 {[%emt 0:01:40]} Bxd2+ {[%emt 0:01:48]} 7. Qxd2 {[%emt 0:01:08]} d6 {[%emt 0:00:29]} 8. Nc3 {[%emt 0:00:46]} e5 {[%emt 0:01:21]} 9. Bc2 {[%emt 0:00:31]} c6 {[%emt 0:05:56]} 10. O-O-O {[%emt 0:21:00]} Re8 {[%emt 0:15:15]} 11. Ng5 {[%emt 0:11:51]} Na6 {[%emt 0:08:08]} 12. h3 {[%emt 0:23:01]} Nb4 {[%emt 0:21:01]} 13. Bb1 {[%emt 0:02:23]} h6 {[%emt 0:00:27]} 14. dxe5 {[%emt 0:04:54]} dxe5 {[%emt 0:00:58]} 15. Nge4 {[%emt 0:00:12]} a5 {[%emt 0:06:31]} 16. a3 {[%emt 0:06:53]} Na6 {[%emt 0:03:50]} 17. Nxf6+ {[%emt 0:00:18]} Qxf6 {[%emt 0:00:08]} 18. Ne4 {[%emt 0:01:37]} Qe6 {[%emt 0:08:00]} 19. Qc2 {[%emt 0:00:21]} Qg6 {[%emt 0:04:04]} 20. g4 {[%emt 0:00:42]} Be6 {[%emt 0:04:50]} 21. f4 {[%emt 0:03:22]} exf4 {[%emt 0:01:31]} 22. exf4 {[%emt 0:00:15]} f5 {[%emt 0:00:52]} 23. Nd6 {[%emt 0:01:13]} Nc5 {[%emt 0:00:01]} 24. Qc3 {[%emt 0:10:33]} Bd5 {[%emt 0:05:09]} 25. Nxf5 {[%emt 0:01:32]} Be4 {[%emt 0:00:32]} 26. Bxe4 {[%emt 0:00:47]} Rxe4 {[%emt 0:00:35]} 27. Rhe1 {[%emt 0:00:32]} Rae8 {[%emt 0:00:28]} 28. Rxe4 {[%emt 0:01:40]} Rxe4 {[%emt 0:00:05]} 29. Kb1 {[%emt 0:03:53]} Kh7 {[%emt 0:00:36]} 30. Re1 {[%emt 0:01:05]} h5 {[%emt 0:03:35]} 31. Rxe4 {[%emt 0:00:16]} Nxe4 {[%emt 0:00:02]} 32. Qc2 {[%emt 0:00:41]} Nc5 {[%emt 0:00:38]} 33. Nd4 {[%emt 0:00:30]} hxg4 {[%emt 0:00:22]} 34. hxg4 {[%emt 0:00:05]} a4 {[%emt 0:01:07]} 35. Qxg6+ {[%emt 0:00:38]} Kxg6 {[%emt 0:00:01]} 36. Kc2 {[%emt 0:00:07]} Kf6 {[%emt 0:00:05]} 37. Kc3 {[%emt 0:01:14]} Ne4+ {[%emt 0:00:09]} 38. Kc2 {[%emt 0:00:18]} g5 {[%emt 0:00:29]} 39. fxg5+ {[%emt 0:00:29]} Kxg5 {[%emt 0:00:02]} 40. Ne6+ {[%emt 0:00:00]} Kxg4 {[%emt 0:00:00]} 41. Nd8 {[%emt 0:06:16]} Kf4 {[%emt 0:19:58]} 42. Nxb7 {[%emt 0:01:01]} Ke3 {[%emt 0:00:34]} 43. Na5 {[%emt 0:11:08]} Kd4 {[%emt 0:00:31]} 44. Nxc6+ {[%emt 0:00:18]} Kxc4 {[%emt 0:00:02]} 45. Nb4 {[%emt 0:00:14]} Nc5 {[%emt 0:00:22]} 46. Na2 {[%emt 0:00:26]} Nb3 {[%emt 0:00:59]} 47. Nc3 {[%emt 0:00:18]} Nd4+ {[%emt 0:00:28]} 48. Kc1 {[%emt 0:00:45]} Nb5 {[%emt 0:02:01]} 49. Kd2 {[%emt 0:05:44]} Nxc3 {[%emt 0:05:11]} 50. bxc3 {[%emt 0:00:14]} Kb3 {[%emt 0:00:01]} 51. Kd3 {[%emt 0:00:05]} Kxa3 {[%emt 0:00:37]} 52. Kc2 {[%emt 0:00:08]} Ka2 {[%emt 0:00:01]} 53. c4 {[%emt 0:00:06]} a3 {[%emt 0:00:04]} 54. c5 {[%emt 0:00:04]} Ka1 {[%emt 0:00:03]} 55. c6 {[%emt 0:00:14]} a2 {[%emt 0:00:02]} 56. c7 {[%emt 0:00:03]} 1/2-1/2

[Event "Mitropa Online Cup Open 2021"]
[Site "Hybrid"]
[Date "2021.05.04"]
[Round "1.3"]
[White "Nayhebaver, Martin"]
[Black "Dobrovoljc, Vid"]
[Result "0-1"]
[ECO "C90"]
[WhiteElo "2485"]
[BlackElo "2377"]
[Annotator "ChessBase"]
[PlyCount "70"]
[EventDate "2021.05.04"]
[EventType "team-tourn"]
[EventCountry "NET"]
[SourceTitle "playchess.com"]
[Source "ChessBase"]
[SourceQuality "1"]
[WhiteTeam "Slovakia"]
[BlackTeam "Slovenia"]
[WhiteTeamCountry "SVK"]
[BlackTeamCountry "SLO"]
[TimeControl "40/5400+30:1800+30"]

1. e4 {[%emt 0:00:00]} e5 {[%emt 0:00:45]} 2. Nf3 {[%emt 0:00:12]} Nc6 {[%emt 0:00:19]} 3. Bc4 {[%emt 0:00:26]} Nf6 {[%emt 0:01:56]} 4. d3 {[%emt 0:00:49]} Be7 {[%emt 0:06:34]} 5. O-O {[%emt 0:08:55]} O-O {[%emt 0:01:08]} 6. Re1 {[%emt 0:04:45]} d6 {[%emt 0:01:14]} 7. c3 {[%emt 0:00:33]} Na5 {[%emt 0:10:21]} 8. Bb5 {[%emt 0:01:19]} a6 {[%emt 0:00:41]} 9. Ba4 {[%emt 0:00:10]} b5 {[%emt 0:00:15]} 10. Bc2 {[%emt 0:00:10]} c5 {[%emt 0:00:27]} 11. Nbd2 {[%emt 0:03:58]} Nc6 {[%emt 0:05:48]} 12. Nf1 {[%emt 0:03:45]} Re8 {[%emt 0:02:08]} 13. a4 {[%emt 0:03:34]} Rb8 {[%emt 0:09:22]} 14. axb5 {[%emt 0:03:16]} axb5 {[%emt 0:00:28]} 15. h3 {[%emt 0:05:08]} Bf8 {[%emt 0:07:27]} 16. d4 {[%emt 0:09:50]} cxd4 {[%emt 0:07:45]} 17. cxd4 {[%emt 0:00:19]} exd4 {[%emt 0:01:28]} 18. Nxd4 {[%emt 0:04:24]} Nxd4 {[%emt 0:03:36]} 19. Qxd4 {[%emt 0:00:09]} Qc7 {[%emt 0:03:25]} 20. Bb3 {[%emt 0:07:12]} Qc5 {[%emt 0:07:57]} 21. Qxc5 {[%emt 0:10:07]} dxc5 {[%emt 0:00:11]} 22. Bf4 {[%emt 0:00:23]} Rb6 {[%emt 0:04:45]} 23. e5 {[%emt 0:00:54]} Nd7 {[%emt 0:06:53]} 24. Ra8 {[%emt 0:02:20]} c4 {[%emt 0:02:20]} 25. Bc2 {[%emt 0:00:36]} Ra6 {[%emt 0:06:05]} 26. Rxa6 {[%emt 0:04:41]} Bxa6 {[%emt 0:00:11]} 27. Ra1 {[%emt 0:01:26]} Bb7 {[%emt 0:00:56]} 28. Ra7 {[%emt 0:05:47]} Nc5 {[%emt 0:01:45]} 29. Be3 {[%emt 0:02:48]} Bd5 {[%emt 0:00:59]} 30. Rc7 {[%emt 0:08:39]} Na6 {[%emt 0:02:21]} 31. Ra7 {[%emt 0:04:39]} Nb4 {[%emt 0:01:23]} 32. Bb1 {[%emt 0:00:25]} Rxe5 {[%emt 0:00:42]} 33. Nd2 {[%emt 0:00:28]} Re8 {[%emt 0:00:43]} 34. Nf3 {[%emt 0:02:19]} Bxf3 {[%emt 0:03:45]} 35. g3 {[%emt 0:00:12]} Rd8 {[%emt 0:00:22]} 0-1

[Event "Mitropa Online Cup Open 2021"]
[Site "Hybrid"]
[Date "2021.05.04"]
[Round "1.3"]
[White "Spalir, Jernej"]
[Black "Druska, Juraj"]
[Result "0-1"]
[ECO "D37"]
[WhiteElo "2389"]
[BlackElo "2494"]
[Annotator "ChessBase"]
[PlyCount "80"]
[EventDate "2021.05.04"]
[EventType "team-tourn"]
[EventCountry "NET"]
[SourceTitle "playchess.com"]
[Source "ChessBase"]
[SourceQuality "1"]
[WhiteTeam "Slovenia"]
[BlackTeam "Slovakia"]
[WhiteTeamCountry "SLO"]
[BlackTeamCountry "SVK"]
[TimeControl "40/5400+30:1800+30"]

1. d4 {[%emt 0:00:00]} d5 {[%emt 0:00:15]} 2. c4 {[%emt 0:00:11]} e6 {[%emt 0:00:11]} 3. Nc3 {[%emt 0:00:09]} Nf6 {[%emt 0:00:11]} 4. Nf3 {[%emt 0:00:06]} Be7 {[%emt 0:00:28]} 5. Bf4 {[%emt 0:00:37]} O-O {[%emt 0:00:16]} 6. e3 {[%emt 0:00:24]} b6 {[%emt 0:00:29]} 7. cxd5 {[%emt 0:01:32]} Nxd5 {[%emt 0:00:27]} 8. Nxd5 {[%emt 0:00:14]} exd5 {[%emt 0:00:16]} 9. Bd3 {[%emt 0:05:14]} c5 {[%emt 0:00:42]} 10. O-O {[%emt 0:03:11]} c4 {[%emt 0:02:36]} 11. Bc2 {[%emt 0:01:37]} Nc6 {[%emt 0:00:19]} 12. Ne5 {[%emt 0:12:11]} Nxe5 {[%emt 0:00:20]} 13. Bxe5 {[%emt 0:00:04]} g6 {[%emt 0:12:17]} 14. b3 {[%emt 0:11:50]} a5 {[%emt 0:00:53]} 15. bxc4 {[%emt 0:08:10]} Ba6 {[%emt 0:00:30]} 16. e4 {[%emt 0:00:08]} Bxc4 {[%emt 0:04:03]} 17. Bd3 {[%emt 0:03:38]} Rc8 {[%emt 0:12:07]} 18. Bxc4 {[%emt 0:01:55]} Rxc4 {[%emt 0:01:53]} 19. Qb3 {[%emt 0:08:17]} a4 {[%emt 0:31:20]} 20. Qb5 {[%emt 0:02:05]} f6 {[%emt 0:02:02]} 21. Bg3 {[%emt 0:07:32]} Rxd4 {[%emt 0:01:30]} 22. exd5 {[%emt 0:00:17]} f5 {[%emt 0:08:30]} 23. d6 {[%emt 0:09:57]} Bxd6 {[%emt 0:00:49]} 24. Bxd6 {[%emt 0:00:05]} Qxd6 {[%emt 0:00:10]} 25. Rab1 {[%emt 0:00:07]} Rf6 {[%emt 0:01:34]} 26. Qe8+ {[%emt 0:06:09]} Kg7 {[%emt 0:01:40]} 27. Rfe1 {[%emt 0:00:06]} f4 {[%emt 0:04:54]} 28. f3 {[%emt 0:09:18]} a3 {[%emt 0:08:57]} 29. Qe7+ {[%emt 0:03:07]} Qxe7 {[%emt 0:01:45]} 30. Rxe7+ {[%emt 0:00:03]} Kh6 {[%emt 0:00:42]} 31. Ra7 {[%emt 0:04:56]} Rd2 {[%emt 0:00:12]} 32. Rxa3 {[%emt 0:00:30]} Rc6 {[%emt 0:00:35]} 33. Kh1 {[%emt 0:00:39]} Rcc2 {[%emt 0:00:14]} 34. Rg1 {[%emt 0:00:03]} Rxa2 {[%emt 0:00:40]} 35. Rxa2 {[%emt 0:00:03]} Rxa2 {[%emt 0:00:06]} 36. Rb1 {[%emt 0:00:04]} Ra7 {[%emt 0:02:39]} 37. Kg1 {[%emt 0:00:05]} Rb7 {[%emt 0:00:04]} 38. Kf2 {[%emt 0:00:48]} b5 {[%emt 0:00:23]} 39. Ke2 {[%emt 0:00:02]} Kg5 {[%emt 0:00:42]} 40. Kd3 {[%emt 0:00:00]} Kf5 {[%emt 0:00:00]} 0-1

[Event "Mitropa Online Cup Open 2021"]
[Site "Hybrid"]
[Date "2021.05.04"]
[Round "1.4"]
[White "Antal, Gergely"]
[Black "Brunello, Sabino"]
[Result "1-0"]
[ECO "C47"]
[WhiteElo "2572"]
[BlackElo "2519"]
[Annotator "ChessBase"]
[PlyCount "81"]
[EventDate "2021.05.04"]
[EventType "team-tourn"]
[EventCountry "NET"]
[SourceTitle "playchess.com"]
[Source "ChessBase"]
[SourceQuality "1"]
[WhiteTeam "Hungary"]
[BlackTeam "Italy"]
[WhiteTeamCountry "HUN"]
[BlackTeamCountry "ITA"]
[TimeControl "40/5400+30:1800+30"]

1. e4 {[%emt 0:00:00]} e5 {[%emt 0:00:09]} 2. Nc3 {[%emt 0:00:17]} Nf6 {[%emt 0:01:09]} 3. g3 {[%emt 0:00:24]} d5 {[%emt 0:01:15]} 4. exd5 {[%emt 0:00:08]} Nxd5 {[%emt 0:00:02]} 5. Bg2 {[%emt 0:00:16]} Nxc3 {[%emt 0:00:25]} 6. bxc3 {[%emt 0:00:07]} Bc5 {[%emt 0:00:28]} 7. Nf3 {[%emt 0:00:17]} Nc6 {[%emt 0:00:13]} 8. O-O {[%emt 0:00:17]} O-O {[%emt 0:00:08]} 9. Re1 {[%emt 0:01:21]} Bg4 {[%emt 0:02:35]} 10. h3 {[%emt 0:03:08]} Bh5 {[%emt 0:00:21]} 11. g4 {[%emt 0:02:48]} Bg6 {[%emt 0:00:12]} 12. Nxe5 {[%emt 0:02:19]} Nxe5 {[%emt 0:00:07]} 13. d4 {[%emt 0:03:19]} Nc6 {[%emt 0:45:13]} 14. dxc5 {[%emt 0:01:23]} f5 {[%emt 0:00:12]} 15. Qxd8 {[%emt 0:15:56]} Raxd8 {[%emt 0:05:37]} 16. Rb1 {[%emt 0:21:16]} fxg4 {[%emt 0:13:44]} 17. hxg4 {[%emt 0:00:19]} Na5 {[%emt 0:03:06]} 18. Bg5 {[%emt 0:09:20]} Rde8 {[%emt 0:03:31]} 19. Rxe8 {[%emt 0:03:51]} Rxe8 {[%emt 0:04:06]} 20. Rd1 {[%emt 0:13:09]} h6 {[%emt 0:08:31]} 21. Bf4 {[%emt 0:03:05]} Re7 {[%emt 0:02:42]} 22. Rd8+ {[%emt 0:01:15]} Kh7 {[%emt 0:00:03]} 23. Rc8 {[%emt 0:02:20]} c6 {[%emt 0:03:44]} 24. Bd6 {[%emt 0:02:22]} Re1+ {[%emt 0:01:29]} 25. Kh2 {[%emt 0:00:11]} Bxc2 {[%emt 0:00:23]} 26. Rc7 {[%emt 0:01:37]} Kg8 {[%emt 0:00:37]} 27. f4 {[%emt 0:04:35]} Re2 {[%emt 0:02:05]} 28. Kg1 {[%emt 0:00:49]} Be4 {[%emt 0:00:39]} 29. Bxe4 {[%emt 0:05:06]} Rxe4 {[%emt 0:00:04]} 30. Kf2 {[%emt 0:00:28]} Ra4 {[%emt 0:00:52]} 31. Be5 {[%emt 0:00:28]} g5 {[%emt 0:00:19]} 32. f5 {[%emt 0:01:27]} Nc4 {[%emt 0:00:31]} 33. Bd4 {[%emt 0:00:47]} Rxa2+ {[%emt 0:00:04]} 34. Kg3 {[%emt 0:00:19]} Nd2 {[%emt 0:00:44]} 35. Rxb7 {[%emt 0:00:26]} Ne4+ {[%emt 0:01:00]} 36. Kf3 {[%emt 0:00:08]} Nxc3 {[%emt 0:00:09]} 37. Bxc3 {[%emt 0:00:42]} Ra3 {[%emt 0:00:02]} 38. Ke4 {[%emt 0:00:07]} Rxc3 {[%emt 0:00:02]} 39. Ke5 {[%emt 0:00:06]} h5 {[%emt 0:00:35]} 40. Kf6 {[%emt 0:00:00]} hxg4 {[%emt 0:00:00]} 41. Kg6 {[%emt 0:01:32]} 1-0

[Event "Mitropa Online Cup Open 2021"]
[Site "Hybrid"]
[Date "2021.05.04"]
[Round "1.4"]
[White "Nagy, Gabor"]
[Black "Lodici, Lorenzo"]
[Result "1-0"]
[ECO "D36"]
[WhiteElo "2511"]
[BlackElo "2483"]
[Annotator "ChessBase"]
[PlyCount "91"]
[EventDate "2021.05.04"]
[EventType "team-tourn"]
[EventCountry "NET"]
[SourceTitle "playchess.com"]
[Source "ChessBase"]
[SourceQuality "1"]
[WhiteTeam "Hungary"]
[BlackTeam "Italy"]
[WhiteTeamCountry "HUN"]
[BlackTeamCountry "ITA"]
[TimeControl "40/5400+30:1800+30"]

1. d4 {[%emt 0:00:00]} d5 {[%emt 0:00:07]} 2. c4 {[%emt 0:00:10]} e6 {[%emt 0:00:03]} 3. Nc3 {[%emt 0:00:07]} Nf6 {[%emt 0:00:03]} 4. cxd5 {[%emt 0:00:21]} exd5 {[%emt 0:00:03]} 5. Bg5 {[%emt 0:00:17]} c6 {[%emt 0:03:19]} 6. e3 {[%emt 0:00:30]} Be7 {[%emt 0:01:34]} 7. Qc2 {[%emt 0:01:26]} Nbd7 {[%emt 0:03:05]} 8. Bd3 {[%emt 0:00:13]} O-O {[%emt 0:00:57]} 9. Nge2 {[%emt 0:00:33]} b5 {[%emt 0:02:12]} 10. O-O {[%emt 0:03:13]} h6 {[%emt 0:02:02]} 11. Bh4 {[%emt 0:00:42]} a5 {[%emt 0:00:31]} 12. f3 {[%emt 0:04:07]} Ba6 {[%emt 0:02:06]} 13. Kh1 {[%emt 0:08:15]} Re8 {[%emt 0:05:29]} 14. Rad1 {[%emt 0:06:02]} Nf8 {[%emt 0:15:57]} 15. Bf2 {[%emt 0:04:28]} Ne6 {[%emt 0:02:21]} 16. e4 {[%emt 0:08:14]} dxe4 {[%emt 0:02:38]} 17. fxe4 {[%emt 0:00:57]} Qc8 {[%emt 0:01:48]} 18. e5 {[%emt 0:12:15]} Nd5 {[%emt 0:01:32]} 19. Bg1 {[%emt 0:03:59]} b4 {[%emt 0:02:53]} 20. Ne4 {[%emt 0:01:53]} a4 {[%emt 0:04:55]} 21. Bxa6 {[%emt 0:02:52]} Qxa6 {[%emt 0:01:03]} 22. N2g3 {[%emt 0:00:16]} g6 {[%emt 0:07:04]} 23. Rf3 {[%emt 0:02:09]} Rad8 {[%emt 0:06:33]} 24. Rdf1 {[%emt 0:00:31]} Rf8 {[%emt 0:00:09]} 25. Qd2 {[%emt 0:02:57]} Kg7 {[%emt 0:01:23]} 26. Qf2 {[%emt 0:03:26]} Kg8 {[%emt 0:04:00]} 27. Rxf7 {[%emt 0:08:58]} Nxd4 {[%emt 0:03:12]} 28. Nd6 {[%emt 0:06:09]} Ne6 {[%emt 0:06:52]} 29. Qc2 {[%emt 0:01:21]} Rxf7 {[%emt 0:07:13]} 30. Nxf7 {[%emt 0:01:40]} Kg7 {[%emt 0:00:17]} 31. Nxd8 {[%emt 0:00:32]} Bxd8 {[%emt 0:00:03]} 32. Qf2 {[%emt 0:01:17]} Qb7 {[%emt 0:00:09]} 33. Ne4 {[%emt 0:00:55]} Bb6 {[%emt 0:00:47]} 34. Qf3 {[%emt 0:00:39]} Bxg1 {[%emt 0:01:10]} 35. Kxg1 {[%emt 0:00:36]} Qe7 {[%emt 0:00:28]} 36. Kh1 {[%emt 0:00:56]} Nd4 {[%emt 0:01:16]} 37. Qg3 {[%emt 0:01:29]} Qe6 {[%emt 0:09:06]} 38. Nd6 {[%emt 0:02:13]} c5 {[%emt 0:02:23]} 39. Qh4 {[%emt 0:03:52]} Nf5 {[%emt 0:01:24]} 40. Nxf5+ {[%emt 0:00:00]} gxf5 {[%emt 0:00:00]} 41. Qg3+ {[%emt 0:01:11]} Qg6 {[%emt 0:01:33]} 42. Qd3 {[%emt 0:01:40]} Qe6 {[%emt 0:01:09]} 43. Qxf5 {[%emt 0:02:48]} Qxf5 {[%emt 0:00:38]} 44. Rxf5 {[%emt 0:00:08]} c4 {[%emt 0:00:02]} 45. e6 {[%emt 0:00:13]} c3 {[%emt 0:00:38]} 46. bxc3 {[%emt 0:00:07]} 1-0

[Event "Mitropa Online Cup Open 2021"]
[Site "Hybrid"]
[Date "2021.05.04"]
[Round "1.4"]
[White "Sonis, Francesco"]
[Black "Mihok, Oliver"]
[Result "1-0"]
[ECO "E62"]
[WhiteElo "2493"]
[BlackElo "2547"]
[Annotator "ChessBase"]
[PlyCount "85"]
[EventDate "2021.05.04"]
[EventType "team-tourn"]
[EventCountry "NET"]
[SourceTitle "playchess.com"]
[Source "ChessBase"]
[SourceQuality "1"]
[WhiteTeam "Italy"]
[BlackTeam "Hungary"]
[WhiteTeamCountry "ITA"]
[BlackTeamCountry "HUN"]
[TimeControl "40/5400+30:1800+30"]

1. d4 {[%emt 0:00:00]} Nf6 {[%emt 0:00:09]} 2. c4 {[%emt 0:00:04]} g6 {[%emt 0:00:07]} 3. g3 {[%emt 0:00:02]} Bg7 {[%emt 0:00:19]} 4. Bg2 {[%emt 0:00:02]} O-O {[%emt 0:00:21]} 5. Nc3 {[%emt 0:00:04]} d6 {[%emt 0:00:15]} 6. Nf3 {[%emt 0:00:02]} Nc6 {[%emt 0:00:39]} 7. O-O {[%emt 0:00:17]} e5 {[%emt 0:00:26]} 8. dxe5 {[%emt 0:00:38]} Nxe5 {[%emt 0:00:07]} 9. b3 {[%emt 0:01:23]} Nxf3+ {[%emt 0:01:05]} 10. Bxf3 {[%emt 0:00:03]} c6 {[%emt 0:00:19]} 11. Bf4 {[%emt 0:05:59]} Bh3 {[%emt 0:12:58]} 12. Re1 {[%emt 0:00:35]} d5 {[%emt 0:07:58]} 13. cxd5 {[%emt 0:01:38]} Nxd5 {[%emt 0:01:18]} 14. Nxd5 {[%emt 0:00:15]} cxd5 {[%emt 0:00:17]} 15. Rc1 {[%emt 0:01:32]} Be6 {[%emt 0:03:31]} 16. Qd2 {[%emt 0:09:38]} Re8 {[%emt 0:12:11]} 17. h4 {[%emt 0:11:32]} Rc8 {[%emt 0:22:33]} 18. Rxc8 {[%emt 0:07:51]} Qxc8 {[%emt 0:00:04]} 19. Rc1 {[%emt 0:00:05]} Qd8 {[%emt 0:00:32]} 20. Rc7 {[%emt 0:03:45]} Re7 {[%emt 0:01:59]} 21. Rxe7 {[%emt 0:05:35]} Qxe7 {[%emt 0:00:04]} 22. Bxd5 {[%emt 0:00:04]} Bxd5 {[%emt 0:02:47]} 23. Qxd5 {[%emt 0:00:05]} Qxe2 {[%emt 0:01:52]} 24. Qd8+ {[%emt 0:13:45]} Bf8 {[%emt 0:00:05]} 25. Bh6 {[%emt 0:00:04]} Qe1+ {[%emt 0:02:36]} 26. Kg2 {[%emt 0:00:03]} Qe4+ {[%emt 0:00:15]} 27. Kh2 {[%emt 0:00:19]} Qe7 {[%emt 0:01:33]} 28. Qa8 {[%emt 0:00:12]} a6 {[%emt 0:02:16]} 29. a4 {[%emt 0:01:23]} a5 {[%emt 0:08:01]} 30. Bxf8 {[%emt 0:04:00]} Qxf8 {[%emt 0:00:06]} 31. Qxa5 {[%emt 0:00:02]} Qe8 {[%emt 0:02:35]} 32. Qb6 {[%emt 0:00:27]} Qe4 {[%emt 0:01:24]} 33. a5 {[%emt 0:00:19]} f5 {[%emt 0:00:46]} 34. b4 {[%emt 0:03:50]} Qd5 {[%emt 0:01:25]} 35. Qc5 {[%emt 0:00:42]} Qf7 {[%emt 0:01:14]} 36. Kg1 {[%emt 0:03:11]} f4 {[%emt 0:01:33]} 37. Qc8+ {[%emt 0:00:21]} Kg7 {[%emt 0:00:07]} 38. Qc3+ {[%emt 0:00:03]} Kg8 {[%emt 0:00:42]} 39. Qf3 {[%emt 0:00:03]} fxg3 {[%emt 0:01:32]} 40. Qxf7+ {[%emt 0:00:00]} Kxf7 {[%emt 0:00:00]} 41. b5 {[%emt 0:00:05]} gxf2+ {[%emt 0:00:11]} 42. Kxf2 {[%emt 0:00:04]} Ke6 {[%emt 0:00:01]} 43. a6 {[%emt 0:00:04]} 1-0

[Event "Mitropa Online Cup Open 2021"]
[Site "Hybrid"]
[Date "2021.05.04"]
[Round "1.5"]
[White "Froewis, Georg"]
[Black "Sochacki, Christophe"]
[Result "0-1"]
[ECO "B22"]
[WhiteElo "2460"]
[BlackElo "2477"]
[Annotator "ChessBase"]
[PlyCount "126"]
[EventDate "2021.05.04"]
[EventType "team-tourn"]
[EventCountry "NET"]
[SourceTitle "playchess.com"]
[Source "ChessBase"]
[SourceQuality "1"]
[WhiteTeam "Austria"]
[BlackTeam "France"]
[WhiteTeamCountry "AUT"]
[BlackTeamCountry "FRA"]
[TimeControl "40/5400+30:1800+30"]

1. e4 {[%emt 0:00:00]} c5 {[%emt 0:00:45]} 2. Nf3 {[%emt 0:00:06]} e6 {[%emt 0:02:28]} 3. c3 {[%emt 0:00:35]} Nf6 {[%emt 0:09:05]} 4. e5 {[%emt 0:00:12]} Nd5 {[%emt 0:06:09]} 5. d4 {[%emt 0:00:08]} cxd4 {[%emt 0:00:45]} 6. cxd4 {[%emt 0:00:06]} d6 {[%emt 0:09:56]} 7. exd6 {[%emt 0:00:05]} Bxd6 {[%emt 0:06:17]} 8. Nc3 {[%emt 0:00:15]} Nxc3 {[%emt 0:20:00]} 9. bxc3 {[%emt 0:00:11]} Qc7 {[%emt 0:03:37]} 10. Bd2 {[%emt 0:00:36]} b6 {[%emt 0:01:57]} 11. Bd3 {[%emt 0:00:57]} Nd7 {[%emt 0:08:19]} 12. Ng5 {[%emt 0:07:42]} Nf6 {[%emt 0:01:59]} 13. Qf3 {[%emt 0:01:11]} Bb7 {[%emt 0:03:47]} 14. Qh3 {[%emt 0:00:38]} h6 {[%emt 0:04:12]} 15. Nf3 {[%emt 0:11:56]} Ne4 {[%emt 0:00:44]} 16. O-O {[%emt 0:06:17]} Nxd2 {[%emt 0:02:06]} 17. Nxd2 {[%emt 0:00:05]} O-O {[%emt 0:00:18]} 18. c4 {[%emt 0:03:19]} Rfd8 {[%emt 0:01:30]} 19. Rfd1 {[%emt 0:01:58]} Be7 {[%emt 0:01:38]} 20. Nb3 {[%emt 0:02:05]} Bf6 {[%emt 0:00:07]} 21. Rac1 {[%emt 0:02:39]} Qf4 {[%emt 0:02:14]} 22. Qe3 {[%emt 0:04:20]} Qg4 {[%emt 0:02:41]} 23. f3 {[%emt 0:00:21]} Qg5 {[%emt 0:01:34]} 24. Qxg5 {[%emt 0:01:10]} Bxg5 {[%emt 0:01:02]} 25. Rc2 {[%emt 0:00:05]} Rac8 {[%emt 0:00:15]} 26. Kf2 {[%emt 0:01:27]} Kf8 {[%emt 0:00:08]} 27. g3 {[%emt 0:02:27]} Bf6 {[%emt 0:00:26]} 28. Ke3 {[%emt 0:03:28]} h5 {[%emt 0:00:54]} 29. Be4 {[%emt 0:05:55]} Ba6 {[%emt 0:01:47]} 30. Bd3 {[%emt 0:00:26]} Ke7 {[%emt 0:00:36]} 31. c5 {[%emt 0:02:59]} Bb7 {[%emt 0:01:01]} 32. Be4 {[%emt 0:00:26]} Bd5 {[%emt 0:00:27]} 33. Bxd5 {[%emt 0:02:22]} Rxd5 {[%emt 0:00:10]} 34. Rdc1 {[%emt 0:00:23]} bxc5 {[%emt 0:01:49]} 35. dxc5 {[%emt 0:00:05]} Rc7 {[%emt 0:04:15]} 36. Rd2 {[%emt 0:02:27]} Rxd2 {[%emt 0:00:09]} 37. Nxd2 {[%emt 0:00:11]} Kd7 {[%emt 0:01:18]} 38. Nb3 {[%emt 0:04:32]} Kc6 {[%emt 0:00:07]} 39. Kd3 {[%emt 0:00:49]} Kd5 {[%emt 0:00:48]} 40. Rc4 {[%emt 0:00:00]} e5 {[%emt 0:00:00]} 41. f4 {[%emt 0:04:25]} g5 {[%emt 0:08:33]} 42. fxe5 {[%emt 0:00:52]} Bxe5 {[%emt 0:00:16]} 43. Ra4 {[%emt 0:00:17]} g4 {[%emt 0:04:23]} 44. Ra5 {[%emt 0:05:06]} f6 {[%emt 0:01:05]} 45. Ra6 {[%emt 0:00:14]} Rh7 {[%emt 0:03:07]} 46. Nd4 {[%emt 0:06:47]} Kxc5 {[%emt 0:02:55]} 47. Ra5+ {[%emt 0:01:13]} Kb6 {[%emt 0:01:22]} 48. Rb5+ {[%emt 0:01:07]} Ka6 {[%emt 0:02:33]} 49. Rd5 {[%emt 0:00:11]} h4 {[%emt 0:00:22]} 50. Ne6 {[%emt 0:11:45]} hxg3 {[%emt 0:00:59]} 51. hxg3 {[%emt 0:00:06]} Bxg3 {[%emt 0:02:40]} 52. Nc5+ {[%emt 0:01:48]} Kb6 {[%emt 0:01:50]} 53. Nd7+ {[%emt 0:00:07]} Kc6 {[%emt 0:01:59]} 54. Nxf6 {[%emt 0:00:30]} Rf7 {[%emt 0:02:23]} 55. Ra5 {[%emt 0:02:11]} Bc7 {[%emt 0:00:10]} 56. Ra6+ {[%emt 0:00:12]} Bb6 {[%emt 0:01:26]} 57. Nxg4 {[%emt 0:00:05]} Kb5 {[%emt 0:00:06]} 58. Rxb6+ {[%emt 0:00:30]} axb6 {[%emt 0:00:04]} 59. Kc3 {[%emt 0:00:03]} Rf3+ {[%emt 0:00:58]} 60. Kb2 {[%emt 0:00:08]} Kb4 {[%emt 0:00:09]} 61. Ne5 {[%emt 0:00:16]} Rf2+ {[%emt 0:00:03]} 62. Kb1 {[%emt 0:00:03]} Kc3 {[%emt 0:00:20]} 63. a4 {[%emt 0:00:04]} Rf4 {[%emt 0:00:16]} 0-1